bitfinex/quotes_BTCUSD_20240823
["timestamp","ask_amount","ask_price","bid_price","bid_amount"]
[1724438753952,0.16559534,63412.0,63404.0,0.277]
[1724438754193,0.001,63422.0,63404.0,0.277]
[1724438754455,0.001,63422.0,63397.0,0.1984]
[1724438754456,0.315414,63409.0,63397.0,0.1984]
[1724438754699,0.00789668,63408.0,63401.0,0.27]
[1724438754957,0.00789668,63407.0,63401.0,0.27]
[1724438755200,0.157702,63411.0,63401.0,0.27]
[1724438755456,0.157697,63413.0,63401.0,0.27]
[1724438755681,0.160707,63409.0,63401.0,0.27]
[1724438755944,0.00789634,63408.0,63401.0,0.27]
[1724438756952,0.006,63413.0,63401.0,0.427725]
[1724438757206,0.0078965,63412.0,63401.0,0.27]
[1724438757488,0.001,63407.0,63401.0,0.27]
[1724438758245,0.00090751,63412.0,63401.0,0.427725]
[1724438758510,0.00090751,63412.0,63410.0,0.157703]
[1724438758511,0.0078968,63411.0,63410.0,0.157703]
[1724438758769,0.00790751,63412.0,63410.0,0.4759703]
[1724438758770,0.00090751,63412.0,63410.0,0.4759703]
[1724438759044,0.00090751,63412.0,63411.0,0.157701]
[1724438759296,0.00090751,63412.0,63411.0,0.473103]
[1724438759840,0.00090751,63412.0,63411.0,1.058905]
[1724438760787,0.00090751,63412.0,63411.0,0.2704]
[1724438761487,0.0088028,63412.0,63411.0,0.2704]
[1724438761729,0.0098028,63412.0,63411.0,0.2714]
[1724438761930,0.0098028,63412.0,63411.0,0.2704]
[1724438761931,0.0088028,63412.0,63411.0,0.2704]
[1724438762131,0.0098028,63412.0,63411.0,0.2714]
[1724438762349,0.0108028,63412.0,63411.0,0.2724]
[1724438762758,0.0098028,63412.0,63411.0,0.2714]
[1724438762994,0.01080303,63412.0,63411.0,0.2724]
[1724438763168,0.02305037,63412.0,63411.0,0.2724]
[1724438763473,0.02305059,63412.0,63411.0,0.2724]
[1724438763754,0.02205059,63412.0,63411.0,0.2714]
[1724438763956,0.02305059,63412.0,63411.0,0.430101]
[1724438764134,0.02305059,63412.0,63411.0,0.2724]
[1724438765589,0.02305059,63412.0,63411.0,0.002]
[1724438766311,0.12305122,63412.0,63411.0,0.002]
[1724438767492,0.02305122,63412.0,63411.0,0.002]
[1724438767719,0.02305122,63412.0,63411.0,0.2713]
[1724438768949,0.02305122,63412.0,63411.0,0.429001]
[1724438769180,0.02305122,63412.0,63411.0,0.2713]
[1724438769976,0.02305122,63412.0,63411.0,0.002]
[1724438769977,0.12175046,63412.0,63411.0,0.002]
[1724438772164,0.42175046,63412.0,63411.0,0.002]
[1724438772550,0.55930475,63412.0,63411.0,0.002]
[1724438772760,0.42175137,63412.0,63411.0,0.002]
[1724438773123,0.42175176,63412.0,63411.0,0.002]
[1724438774151,0.42075176,63412.0,63411.0,0.001]
[1724438774382,0.41975176,63412.0,63406.0,0.2812]
[1724438774538,0.30090751,63412.0,63411.0,0.001]
[1724438774746,0.41975704,63412.0,63406.0,0.2812]
[1724438774946,0.11884953,63411.0,63406.0,0.2812]
[1724438775146,0.11884953,63410.0,63406.0,0.2812]
[1724438775345,0.30190751,63412.0,63406.0,0.2812]
[1724438775346,0.02014497,63409.0,63406.0,0.2812]
[1724438775713,0.02014497,63408.0,63406.0,0.2812]
[1724438775927,0.30190751,63412.0,63407.0,0.157711]
[1724438776075,0.30190751,63412.0,63406.0,0.2812]
[1724438776076,0.30190751,63412.0,63408.0,0.157708]
[1724438776293,0.01224786,63411.0,63408.0,0.157708]
[1724438776498,0.02014373,63410.0,63406.0,0.2812]
[1724438776750,0.02014373,63409.0,63406.0,0.2812]
[1724438776897,0.02014373,63408.0,63406.0,0.2812]
[1724438777075,0.30090751,63412.0,63406.0,0.2812]
[1724438777076,0.02014373,63407.0,63406.0,0.2812]
[1724438777683,0.02014373,63407.0,63406.0,0.75434]
[1724438778026,0.30090751,63412.0,63411.0,0.788505]
[1724438778027,0.30190751,63412.0,63411.0,0.788505]
[1724438778225,0.04698685,63438.0,63436.0,0.2956]
[1724438778410,0.4338,63450.0,63436.0,0.453239]
[1724438778411,0.5124257,63437.0,63436.0,0.453239]
[1724438778778,0.30659037,63455.0,63445.0,0.2843]
[1724438778779,0.01649037,63455.0,63445.0,0.2843]
[1724438778989,0.07163149,63460.0,63445.0,0.2843]
[1724438778990,0.49229154,63451.0,63445.0,0.2843]
[1724438779198,0.02013131,63450.0,63436.0,0.2843]
[1724438779395,0.02013131,63449.0,63436.0,0.2843]
[1724438779612,0.02013131,63448.0,63436.0,0.2843]
[1724438779814,0.02013131,63447.0,63436.0,0.441938]
[1724438780016,0.02013131,63446.0,63436.0,0.2843]
[1724438780216,0.02013131,63445.0,63436.0,0.2843]
[1724438780389,0.02013131,63444.0,63436.0,0.2843]
[1724438780590,0.02013131,63443.0,63436.0,0.2853]
[1724438780794,0.02013131,63442.0,63436.0,0.2853]
[1724438781002,0.315195,63453.0,63436.0,0.2843]
[1724438781351,0.003,63446.0,63436.0,0.2843]
[1724438781551,0.00789175,63445.0,63440.0,0.157627]
[1724438781722,0.00789175,63445.0,63441.0,0.157626]
[1724438781956,0.00789175,63445.0,63444.0,0.441619]
[1724438782116,0.003,63446.0,63445.0,0.667149]
[1724438782320,0.003,63446.0,63445.0,1.43038498]
[1724438782523,0.00090751,63457.0,63456.0,0.157589]
[1724438782795,0.00090751,63457.0,63456.0,0.756768]
[1724438783000,0.00090751,63457.0,63456.0,0.441589]
[1724438783169,0.00090751,63457.0,63456.0,0.284]
[1724438783333,0.00090751,63457.0,63456.0,1.27209855]
[1724438783537,0.00090751,63457.0,63456.0,1.43610153]
[1724438783742,0.00090751,63457.0,63456.0,1.75128053]
[1724438783973,0.00390751,63457.0,63456.0,1.75128053]
[1724438784368,0.00090751,63457.0,63456.0,1.75128053]
[1724438784571,0.00290751,63457.0,63456.0,1.75128053]
[1724438784972,0.00090751,63457.0,63456.0,1.75128053]
[1724438785390,0.00190751,63457.0,63456.0,1.75828053]
[1724438785559,0.00290751,63457.0,63456.0,1.76428053]
[1724438785954,0.00090751,63457.0,63456.0,1.75128053]
[1724438786388,0.00190751,63457.0,63456.0,0.644589]
[1724438786591,0.00190751,63457.0,63456.0,0.487]
[1724438787310,0.00290751,63457.0,63456.0,0.494]
[1724438787677,0.00190751,63457.0,63456.0,0.488]
[1724438787904,0.00190751,63457.0,63448.0,0.2863]
[1724438787905,0.00090751,63457.0,63448.0,0.2863]
[1724438788316,0.00190751,63457.0,63456.0,0.007]
[1724438788741,0.00090751,63457.0,63450.0,0.157604]
[1724438788968,0.00090751,63457.0,63448.0,0.2863]
[1724438788969,0.00190751,63457.0,63456.0,0.005]
[1724438789174,0.00590751,63457.0,63456.0,0.005]
[1724438789373,0.00490751,63457.0,63452.0,0.157599]
[1724438789578,0.00490751,63457.0,63448.0,0.443908]
[1724438789782,0.00990751,63457.0,63449.0,0.157605]
[1724438790294,0.00994751,63457.0,63448.0,0.2863]
[1724438790540,0.00094751,63457.0,63450.0,0.157602]
[1724438790742,0.00394751,63457.0,63450.0,0.157602]
[1724438790970,0.00594751,63457.0,63448.0,0.2863]
[1724438791115,0.157596,63454.0,63446.0,0.1806]
[1724438791323,0.00294751,63457.0,63446.0,0.1806]
[1724438791501,0.00294751,63457.0,63442.0,0.2945]
[1724438791502,0.157593,63455.0,63442.0,0.2945]
[1724438792150,0.2988,63448.0,63434.0,0.494]
[1724438792526,0.157617,63445.0,63434.0,0.494]
[1724438793153,0.2988,63448.0,63434.0,0.494]
[1724438793359,0.157631,63440.0,63434.0,0.005]
[1724438793701,0.157632,63439.0,63429.0,0.4791]
[1724438794021,0.023,63447.0,63434.0,0.157643]
[1724438794022,0.005,63445.0,63434.0,0.157643]
[1724438794220,0.15762,63444.0,63429.0,0.4791]
[1724438794357,0.15762,63444.0,63430.0,0.157653]
[1724438794580,0.005,63445.0,63430.0,0.157653]
[1724438794581,0.005,63445.0,63432.0,0.157647]
[1724438794775,0.004,63439.0,63429.0,0.4791]
[1724438795298,0.0516866,63439.0,63429.0,0.4791]
[1724438795509,0.257622,63443.0,63429.0,0.342655]
[1724438795681,0.006,63440.0,63429.0,0.185]
[1724438795893,0.006,63440.0,63433.0,0.315292]
[1724438796082,0.1,63443.0,63431.0,0.2806]
[1724438796083,0.1,63443.0,63434.0,0.315287]
[1724438796236,0.1,63443.0,63431.0,0.2806]
[1724438796439,0.1,63443.0,63437.0,0.157635]
[1724438796642,0.00490751,63445.0,63438.0,0.157633]
[1724438797042,0.00090751,63445.0,63434.0,0.157643]
[1724438797248,0.00090751,63445.0,63435.0,0.315281]
[1724438797249,0.00789268,63444.0,63435.0,0.315281]
[1724438797445,0.00090751,63445.0,63438.0,0.157632]
[1724438797800,0.002,63443.0,63435.0,0.315281]
[1724438798145,0.002,63443.0,63436.0,0.157637]
[1724438798368,0.002,63443.0,63436.0,0.157638]
[1724438798573,0.002,63443.0,63435.0,0.0031524]
[1724438798782,0.002,63443.0,63436.0,0.157637]
[1724438798985,0.002,63443.0,63436.0,0.147637]
[1724438799183,0.002,63443.0,63437.0,0.157635]
[1724438799530,0.44013623,63442.0,63420.0,0.181]
[1724438799677,0.157632,63439.0,63421.0,0.00315312]
[1724438799880,0.0078926,63438.0,63422.0,0.16400298]
[1724438800077,0.42,63442.0,63427.0,0.31532]
[1724438800078,0.1,63441.0,63427.0,0.31532]
[1724438800286,0.00789328,63440.0,63430.0,0.157654]
[1724438800486,0.00789328,63440.0,63426.0,0.315326]
[1724438800705,0.1,63441.0,63428.0,0.2759]
[1724438800706,0.00789326,63439.0,63428.0,0.2759]
[1724438801041,0.1,63441.0,63432.0,0.1851]
[1724438801229,0.157626,63442.0,63432.0,0.1851]
[1724438801379,0.004,63443.0,63432.0,0.1851]
[1724438801380,0.00789289,63441.0,63432.0,0.1851]
[1724438801623,0.004,63443.0,63432.0,0.1851]
[1724438801825,0.00789289,63442.0,63432.0,0.1851]
[1724438802437,0.02561924,63442.0,63432.0,0.1851]
[1724438802609,0.00789289,63441.0,63432.0,0.1851]
[1724438803024,0.00789289,63440.0,63432.0,0.342747]
[1724438803229,0.00789289,63439.0,63432.0,0.342747]
[1724438803425,0.00090751,63445.0,63433.0,0.29875276]
[1724438803672,0.003,63442.0,63436.0,0.315275]
[1724438803908,0.00090751,63445.0,63437.0,0.157634]
[1724438804110,0.00090751,63445.0,63436.0,0.315278]
[1724438804111,0.001,63442.0,63436.0,0.157637]
[1724438804431,0.001,63442.0,63437.0,0.157636]
[1724438804633,0.001,63442.0,63435.0,0.315281]
[1724438804634,0.00789249,63441.0,63435.0,0.315281]
[1724438804838,0.00090751,63445.0,63437.0,0.315271]
[1724438805039,0.001,63442.0,63440.0,0.157628]
[1724438805266,0.00789253,63441.0,63440.0,0.157628]
[1724438805518,0.00789253,63441.0,63438.0,0.157633]
[1724438805736,0.00789253,63440.0,63439.0,0.157631]
[1724438805948,0.00789253,63444.0,63439.0,0.157631]
[1724438806123,0.0122417,63443.0,63440.0,0.157629]
[1724438806277,0.00290751,63445.0,63440.0,0.157629]
[1724438806278,0.02013428,63442.0,63440.0,0.157629]
[1724438806483,0.02013428,63441.0,63438.0,0.157632]
[1724438806873,0.00789258,63440.0,63438.0,0.157632]
[1724438807046,0.00789258,63439.0,63438.0,0.003]
[1724438807266,0.00789258,63444.0,63433.0,0.2956]
[1724438807575,0.2741,63442.0,63433.0,0.2956]
[1724438807689,0.02013416,63441.0,63434.0,0.157642]
[1724438807925,0.02013416,63440.0,63434.0,0.157642]
[1724438808137,0.02013426,63439.0,63434.0,0.157642]
[1724438808333,0.00094751,63445.0,63438.0,0.004]
[1724438808546,0.02013425,63444.0,63440.0,0.001]
[1724438808748,0.02013425,63443.0,63440.0,0.001]
[1724438808949,0.02013425,63442.0,63440.0,0.001]
[1724438809235,0.02013425,63441.0,63433.0,0.2956]
[1724438809396,0.01987935,63440.0,63433.0,0.2956]
[1724438809603,0.01987935,63439.0,63433.0,0.2956]
[1724438809833,0.001,63439.0,63433.0,0.2956]
[1724438810072,0.00789257,63438.0,63433.0,0.2956]
[1724438810888,0.00789257,63439.0,63432.0,0.1851]
[1724438811399,0.00789257,63439.0,63428.0,0.2948]
[1724438811400,0.023,63438.0,63428.0,0.2948]
[1724438811646,0.023,63438.0,63417.0,0.2948]
[1724438811647,0.315301,63432.0,63417.0,0.2948]
[1724438811841,0.315301,63432.0,63414.0,0.1839]
[1724438811842,0.32319657,63431.0,63414.0,0.1839]
[1724438812043,0.157667,63425.0,63414.0,0.1839]
[1724438812258,0.00789257,63424.0,63414.0,0.1839]
[1724438812458,0.00789257,63423.0,63414.0,0.1839]
[1724438813014,0.00789515,63422.0,63414.0,0.1839]
[1724438813216,0.00789515,63421.0,63414.0,0.1879]
[1724438813413,0.00789515,63420.0,63414.0,0.1839]
[1724438813634,0.00789515,63419.0,63414.0,0.1839]
[1724438813783,0.00889515,63423.0,63414.0,0.1879]
[1724438813978,0.00789515,63422.0,63414.0,0.1909]
[1724438814387,0.00789515,63422.0,63414.0,0.1879]
[1724438814836,0.001,63419.0,63414.0,0.1909]
[1724438815010,0.00789515,63418.0,63414.0,0.1869]
[1724438815211,0.00789515,63418.0,63414.0,0.1839]
[1724438815613,0.00789515,63417.0,63414.0,0.1849]
[1724438815853,0.00789515,63416.0,63414.0,0.1849]
[1724438816110,0.001,63422.0,63414.0,0.1849]
[1724438816311,0.00789515,63421.0,63414.0,0.1849]
[1724438816518,0.001,63422.0,63414.0,0.1849]
[1724438816519,0.001,63418.0,63414.0,0.1849]
[1724438816751,0.001,63418.0,63417.0,0.78843]
[1724438816923,0.001,63422.0,63421.0,0.762328]
[1724438817155,0.1,63438.0,63422.0,0.315346]
[1724438817346,0.50018521,63437.0,63421.0,0.2893]
[1724438817544,0.1,63438.0,63421.0,0.2893]
[1724438817545,0.10789367,63436.0,63423.0,0.15767]
[1724438817781,0.00789367,63435.0,63424.0,0.04175062]
[1724438818743,0.00789367,63434.0,63424.0,0.04175062]
[1724438818919,0.00789367,63433.0,63424.0,0.04175062]
[1724438819123,0.105,63435.0,63424.0,0.04175062]
[1724438819328,0.00789365,63432.0,63424.0,0.04175062]
[1724438819715,0.315303,63431.0,63421.0,0.2893]
[1724438819833,0.315316,63429.0,63417.0,0.1908]
[1724438820032,0.33029365,63430.0,63417.0,0.1908]
[1724438820236,0.157658,63429.0,63417.0,0.1908]
[1724438820884,0.157658,63429.0,63413.0,0.000825]
[1724438820885,0.49229154,63427.0,63413.0,0.000825]
[1724438821116,0.1,63426.0,63413.0,0.000825]
[1724438821291,0.157675,63422.0,63417.0,0.000824]
[1724438821617,0.10789511,63421.0,63417.0,0.000824]
[1724438821824,0.02014141,63420.0,63419.0,0.655443]
[1724438822018,0.1,63438.0,63425.0,0.472995]
[1724438822245,0.49229154,63435.0,63423.0,0.15767]
[1724438822407,0.1,63438.0,63421.0,0.157674]
[1724438822408,0.12013769,63434.0,63421.0,0.157674]
[1724438822613,0.12013769,63434.0,63422.0,0.157671]
[1724438822614,0.02013769,63433.0,63422.0,0.157671]
[1724438822819,0.02013769,63432.0,63424.0,0.157667]
[1724438823019,0.00789364,63432.0,63421.0,0.315352]
[1724438823224,0.3036,63442.0,63417.0,0.000824]
[1724438823225,0.0009064,63441.0,63431.0,0.777303]
[1724438823454,0.51242832,63440.0,63431.0,0.462]
[1724438823618,0.004,63434.0,63431.0,0.462]
[1724438823812,0.02013678,63433.0,63426.0,0.2796]
[1724438824012,0.02013678,63432.0,63426.0,0.2796]
[1724438824254,0.02013678,63431.0,63424.0,0.1824]
[1724438824464,0.02013678,63430.0,63424.0,0.1824]
[1724438824674,0.02013678,63429.0,63424.0,0.1824]
[1724438824902,0.02013678,63428.0,63424.0,0.1824]
[1724438825095,0.02013678,63427.0,63424.0,0.1824]
[1724438825359,0.02013678,63426.0,63424.0,0.1824]
[1724438825576,0.02013678,63425.0,63424.0,0.1824]
[1724438825986,0.02013678,63425.0,63424.0,0.347069]
[1724438826146,0.00789317,63425.0,63424.0,0.1824]
[1724438826527,0.00789317,63425.0,63424.0,0.1924]
[1724438826949,0.00789317,63425.0,63424.0,0.340069]
[1724438827150,0.001,63427.0,63425.0,0.283]
[1724438827350,0.001,63427.0,63426.0,1.08397268]
[1724438827574,4e-05,63431.0,63430.0,0.472962]
[1724438828746,4e-05,63431.0,63430.0,0.78827]
[1724438828929,4e-05,63431.0,63430.0,0.79227]
[1724438829164,0.00104,63431.0,63430.0,0.79227]
[1724438829402,0.00104,63431.0,63430.0,0.476962]
[1724438829605,0.00104,63431.0,63430.0,0.481962]
[1724438829806,0.00893276,63431.0,63430.0,0.79227]
[1724438830122,0.00993276,63431.0,63430.0,0.79827]
[1724438830709,0.00893276,63431.0,63430.0,0.79427]
[1724438831106,0.00993276,63431.0,63430.0,0.80127]
[1724438831326,0.0097501,63431.0,63430.0,0.80127]
[1724438831608,0.0097501,63431.0,63430.0,0.170654]
[1724438831746,0.0097501,63431.0,63430.0,0.013]
[1724438832715,0.02199306,63431.0,63430.0,0.013]
[1724438833481,0.33729606,63431.0,63430.0,0.013]
[1724438833691,0.83325006,63431.0,63430.0,0.013]
[1724438833900,1.67825424,63431.0,63430.0,0.013]
[1724438834106,1.63113288,63431.0,63430.0,0.013]
[1724438834907,1.40239738,63431.0,63430.0,9.2e-07]
[1724438835124,0.157667,63425.0,63413.0,0.000825]
[1724438835306,0.13392668,63424.0,63413.0,0.000825]
[1724438835451,0.04716843,63428.0,63413.0,0.31936864]
[1724438835452,0.01224686,63423.0,63413.0,0.31936864]
[1724438835839,0.01224686,63422.0,63414.0,0.157692]
[1724438836013,0.01224686,63421.0,63414.0,0.157692]
[1724438836218,0.01224686,63420.0,63414.0,0.157692]
[1724438836436,0.01224686,63419.0,63414.0,0.157692]
[1724438836636,0.01224686,63418.0,63414.0,0.00315349]
[1724438836827,0.01224686,63418.0,63413.0,0.000825]
[1724438837383,0.01224686,63418.0,63413.0,0.158518]
[1724438837790,0.257662,63427.0,63414.0,0.157693]
[1724438838119,0.257662,63427.0,63413.0,0.000825]
[1724438838120,0.001,63418.0,63417.0,0.002824]
[1724438838520,0.001,63418.0,63417.0,0.004824]
[1724438838700,0.01224625,63419.0,63417.0,0.002824]
[1724438838901,0.01224625,63419.0,63417.0,0.000824]
[1724438839259,0.01224625,63418.0,63417.0,0.000824]
[1724438839825,0.01224625,63418.0,63417.0,0.001824]
[1724438840011,0.01224625,63418.0,63417.0,0.000824]
[1724438840388,0.01224625,63418.0,63417.0,0.002824]
[1724438840793,0.01224625,63418.0,63417.0,0.16051]
[1724438840997,0.17184013,63428.0,63417.0,0.16051]
[1724438841196,0.01224608,63418.0,63417.0,0.002824]
[1724438841400,0.001,63418.0,63417.0,0.63988498]
[1724438841613,0.00889493,63418.0,63417.0,1.26862898]
[1724438841793,0.0009464,63431.0,63430.0,0.472962]
[1724438841999,0.0009464,63431.0,63430.0,1.73618098]
[1724438843113,0.0019464,63431.0,63430.0,1.74318098]
[1724438843366,0.0019464,63431.0,63430.0,1.73618098]
[1724438843367,0.0009464,63431.0,63430.0,1.73618098]
[1724438844316,0.0009464,63431.0,63430.0,1.42087298]
[1724438844927,0.0009464,63431.0,63430.0,1.42687298]
[1724438845123,0.0019464,63431.0,63430.0,1.42687298]
[1724438845347,0.0029464,63431.0,63430.0,1.44087298]
[1724438845547,0.0019464,63431.0,63430.0,1.25687]
[1724438845767,0.0009464,63431.0,63430.0,0.941562]
[1724438845976,0.0029464,63431.0,63430.0,0.019]
[1724438846220,0.01378548,63431.0,63430.0,0.006]
[1724438846365,0.02167823,63431.0,63426.0,0.486]
[1724438846567,0.0019464,63431.0,63430.0,0.013]
[1724438846769,0.00983932,63431.0,63430.0,0.013]
[1724438847380,0.3183787,63431.0,63430.0,0.013]
[1724438847585,0.32272824,63431.0,63430.0,0.013]
[1724438847794,0.33062159,63431.0,63430.0,0.013]
[1724438847991,0.33162181,63431.0,63430.0,0.019]
[1724438848199,0.33162181,63431.0,63430.0,0.006]
[1724438848405,0.33162181,63431.0,63418.0,0.157683]
[1724438848406,0.47543343,63431.0,63418.0,0.157683]
[1724438848606,0.47543343,63431.0,63426.0,0.013]
[1724438848607,0.02013603,63430.0,63426.0,0.013]
[1724438848835,0.16383603,63429.0,63426.0,0.013]
[1724438849036,0.16383603,63429.0,63417.0,0.158509]
[1724438849037,0.11881494,63428.0,63417.0,0.158509]
[1724438849375,0.1437,63429.0,63417.0,0.158509]
[1724438849376,0.02013603,63427.0,63417.0,0.000824]
[1724438849498,0.03197756,63426.0,63418.0,0.004]
[1724438849861,0.1437,63429.0,63418.0,0.004]
[1724438849862,0.03197756,63425.0,63418.0,0.161683]
[1724438850183,0.03197756,63424.0,63420.0,0.157678]
[1724438850587,0.03197756,63423.0,63418.0,0.004]
[1724438850716,0.1437,63429.0,63418.0,0.004]
[1724438850717,0.0197351,63422.0,63418.0,0.004]
[1724438850922,0.0197351,63421.0,63417.0,0.158508]
[1724438851124,0.0197351,63420.0,63417.0,0.158508]
[1724438851497,0.0197351,63419.0,63418.0,0.157683]
[1724438851699,0.0197351,63419.0,63417.0,0.163509]
[1724438851905,0.0197351,63418.0,63417.0,0.005824]
[1724438852105,0.0319802,63418.0,63417.0,0.000824]
[1724438852253,0.0197351,63418.0,63417.0,0.012824]
[1724438852456,0.00789357,63418.0,63417.0,0.012824]
[1724438852655,0.00789357,63419.0,63417.0,0.004824]
[1724438852843,0.00789357,63419.0,63417.0,0.000824]
[1724438853042,0.00789357,63418.0,63417.0,0.011824]
[1724438853343,0.00789357,63418.0,63417.0,0.000824]
[1724438853554,0.00789445,63418.0,63417.0,0.000824]
[1724438853754,0.00789445,63422.0,63417.0,0.000824]
[1724438853955,0.0201396,63421.0,63417.0,0.000824]
[1724438854149,0.001,63418.0,63417.0,0.005824]
[1724438854400,0.00889445,63418.0,63417.0,0.005824]
[1724438854596,0.00889445,63418.0,63417.0,0.012824]
[1724438854797,0.00789445,63418.0,63417.0,0.000824]
[1724438854999,0.00789445,63418.0,63417.0,0.005824]
[1724438855198,0.00889445,63421.0,63417.0,0.011824]
[1724438855402,0.00789445,63420.0,63417.0,0.000824]
[1724438855810,0.002,63418.0,63417.0,0.014824]
[1724438856011,0.001,63418.0,63417.0,0.005824]
[1724438856212,0.00889445,63418.0,63417.0,0.005824]
[1724438856416,0.00889445,63418.0,63417.0,0.011824]
[1724438856616,0.001,63418.0,63417.0,0.011824]
[1724438857195,0.00789445,63418.0,63417.0,0.006824]
[1724438857392,0.001,63421.0,63417.0,0.006824]
[1724438857596,0.00889445,63420.0,63417.0,0.16351]
[1724438857799,0.00789445,63419.0,63417.0,0.005824]
[1724438858000,0.00789445,63419.0,63417.0,0.000824]
[1724438858200,0.00789445,63418.0,63417.0,0.000824]
[1724438858402,0.002,63418.0,63417.0,0.014824]
[1724438858628,0.00989445,63418.0,63417.0,0.014824]
[1724438858829,0.00889445,63418.0,63417.0,0.000824]
[1724438859033,0.00889445,63418.0,63417.0,0.008824]
[1724438859233,0.00889445,63418.0,63417.0,0.013824]
[1724438859474,0.02014063,63418.0,63417.0,0.005824]
[1724438859830,0.02114063,63418.0,63417.0,0.013824]
[1724438860574,0.02114063,63418.0,63417.0,0.008824]
[1724438860778,0.02214063,63418.0,63417.0,0.013824]
[1724438860983,0.79979063,63418.0,63417.0,0.013824]
[1724438861226,0.89648553,63418.0,63417.0,0.000824]
[1724438861375,0.99648553,63418.0,63417.0,0.005824]
[1724438861580,0.99648553,63418.0,63417.0,0.010824]
[1724438861927,0.99648553,63418.0,63417.0,0.005824]
[1724438862075,0.52443553,63418.0,63417.0,0.000824]
[1724438862335,0.52843553,63418.0,63417.0,0.000824]
[1724438862638,0.53443553,63418.0,63417.0,0.001824]
[1724438863058,0.53443553,63418.0,63417.0,0.000824]
[1724438863059,0.12514063,63418.0,63417.0,0.000824]
[1724438863254,0.02514063,63418.0,63417.0,0.000824]
[1724438863454,0.02514063,63418.0,63417.0,0.35041]
[1724438863691,0.00789445,63418.0,63417.0,0.35041]
[1724438863824,4e-05,63424.0,63423.0,0.473014]
[1724438864026,4e-05,63424.0,63423.0,1.084757]
[1724438864227,4e-05,63424.0,63423.0,1.74930298]
[1724438864415,4e-05,63424.0,63423.0,1.74730298]
[1724438865035,0.00704,63424.0,63423.0,1.74830298]
[1724438865340,0.00604,63424.0,63423.0,1.74730298]
[1724438865668,0.00704,63424.0,63423.0,1.75830298]
[1724438867188,0.00104,63424.0,63423.0,0.808943]
[1724438867516,0.00204,63424.0,63423.0,0.972614]
[1724438867669,0.00204,63424.0,63423.0,1.287957]
[1724438867670,0.0138803,63424.0,63423.0,1.287957]
[1724438867846,0.0138803,63424.0,63423.0,1.76130298]
[1724438867847,0.00104,63424.0,63423.0,1.76130298]
[1724438868049,4e-05,63424.0,63423.0,1.75030298]
[1724438868420,4e-05,63424.0,63423.0,2.08664598]
[1724438868421,0.00204,63424.0,63423.0,2.08664598]
[1724438868580,0.00204,63424.0,63423.0,2.07264598]
[1724438868958,0.00204,63424.0,63423.0,2.07964598]
[1724438869175,4e-05,63424.0,63423.0,2.06564598]
[1724438870303,4e-05,63424.0,63423.0,2.07164598]
[1724438870304,0.00104,63424.0,63423.0,2.07164598]
[1724438870509,0.00204,63424.0,63423.0,1.77030298]
[1724438870714,4e-05,63424.0,63423.0,1.75030298]
[1724438870887,0.00104,63424.0,63423.0,1.276957]
[1724438871070,0.00204,63424.0,63423.0,0.5026]
[1724438871278,0.00204,63424.0,63423.0,0.975614]
[1724438871486,0.00104,63424.0,63423.0,0.969614]
[1724438871884,0.00104,63424.0,63423.0,0.961614]
[1724438872136,0.00204,63424.0,63423.0,0.975614]
[1724438872828,0.00204,63424.0,63423.0,0.660271]
[1724438873235,0.00204,63424.0,63423.0,0.969614]
[1724438873236,0.00104,63424.0,63423.0,0.969614]
[1724438873438,0.00104,63424.0,63423.0,0.961614]
[1724438873618,0.00104,63424.0,63423.0,1.276957]
[1724438873980,4e-05,63424.0,63423.0,0.955614]
[1724438874320,4e-05,63424.0,63423.0,0.975614]
[1724438874321,0.00204,63424.0,63423.0,0.975614]
[1724438874949,0.00104,63424.0,63423.0,0.961614]
[1724438875353,0.00204,63424.0,63423.0,0.975614]
[1724438875834,0.00204,63424.0,63423.0,1.290957]
[1724438876352,0.00204,63424.0,63423.0,0.975614]
[1724438876556,0.00204,63424.0,63423.0,1.290957]
[1724438877407,0.0016605,63424.0,63423.0,1.290957]
[1724438877854,0.0016605,63424.0,63423.0,1.6063]
[1724438878891,0.0016605,63424.0,63423.0,1.77030298]
[1724438882591,0.0016605,63424.0,63423.0,1.77112798]
[1724438882989,0.00256801,63424.0,63423.0,1.77112798]
[1724438888877,0.0009064,63430.0,63426.0,0.315327]
[1724438889090,0.0197324,63429.0,63423.0,0.503425]
[1724438889313,0.0009064,63430.0,63429.0,0.157656]
[1724438889513,0.0127456,63430.0,63429.0,0.472969]
[1724438889664,0.0009064,63430.0,63429.0,0.472969]
[1724438890269,0.0009064,63430.0,63426.0,0.008]
[1724438890270,0.01274514,63430.0,63426.0,0.008]
[1724438890474,0.0009064,63430.0,63423.0,0.483425]
[1724438890636,0.01973241,63429.0,63428.0,0.157659]
[1724438891704,0.01973241,63429.0,63428.0,0.472977]
[1724438891911,0.01973241,63429.0,63428.0,0.157659]
[1724438892112,0.03197504,63429.0,63428.0,0.157659]
[1724438892743,0.03197504,63429.0,63428.0,0.167659]
[1724438893163,0.03197504,63429.0,63428.0,0.01]
[1724438893530,0.03297504,63429.0,63428.0,0.02]
[1724438893747,0.03297504,63429.0,63428.0,0.177659]
[1724438893748,0.01283969,63429.0,63428.0,0.177659]
[1724438893938,0.03297548,63429.0,63428.0,0.177659]
[1724438894145,0.02073281,63429.0,63428.0,0.177659]
[1724438894296,0.03297548,63429.0,63428.0,0.177659]
[1724438894502,0.03301548,63429.0,63428.0,0.177659]
[1724438894688,0.03301548,63429.0,63428.0,0.02]
[1724438895469,0.03301548,63429.0,63428.0,0.177659]
[1724438895624,0.02077281,63429.0,63428.0,0.62531472]
[1724438895802,0.02168032,63429.0,63428.0,0.94063272]
[1724438896008,0.02168032,63429.0,63428.0,1.57126872]
[1724438896214,0.02168032,63429.0,63428.0,1.25279798]
[1724438896887,0.02167833,63429.0,63428.0,1.25279798]
[1724438897106,0.02167833,63429.0,63428.0,1.56811598]
[1724438899968,0.00983984,63429.0,63428.0,1.56811598]